bitfinex/quotes_ETHUSD_20250821
["timestamp","ask_amount","ask_price","bid_price","bid_amount"]
[1755781105067,0.0004,4256.3,4256.2,5.09412776]
[1755781105398,0.0004,4256.3,4256.2,5.39702776]
[1755781106201,0.0004,4256.3,4256.2,5.09412776]
[1755781106698,0.0004,4256.3,4256.2,0.95012776]
[1755781106879,0.0004,4256.3,4256.2,5.09312776]
[1755781107773,0.0004,4256.3,4256.2,5.39602776]
[1755781109165,0.0004,4256.3,4256.2,9.05602776]
[1755781109392,0.0004,4256.3,4256.2,9.51572776]
[1755781109797,0.0004,4256.3,4256.2,11.86524141]
[1755781109998,0.0004,4256.3,4256.2,9.51572776]
[1755781110201,0.0004,4256.3,4256.2,3.95012776]
[1755781110366,0.7493,4256.3,4256.2,7.4348075]
[1755781111208,0.7493,4256.3,4256.2,3.1752075]
[1755781111374,0.7493,4256.3,4256.2,4.3172075]
[1755781111567,0.8669,4256.3,4256.1,0.001]
[1755781111787,0.4585,4256.2,4256.1,0.001]
[1755781111993,0.7489,4256.2,4256.1,4.143]
[1755781112197,0.7489,4256.2,4256.1,0.001]
[1755781112410,0.7489,4256.2,4256.1,4.143]
[1755781113317,0.2904,4256.2,4256.1,4.143]
[1755781113621,0.7489,4256.2,4256.1,4.143]
[1755781113928,0.7489,4256.2,4256.1,0.001]
[1755781114132,0.7489,4256.2,4256.1,4.142]
[1755781114792,0.7489,4256.2,4256.1,0.001]
[1755781115213,0.7489,4256.2,4256.1,4.142]
[1755781115515,0.7489,4256.2,4256.1,0.001]
[1755781118210,0.7481,4256.2,4256.1,0.001]
[1755781120514,0.2896,4256.2,4256.1,0.001]
[1755781121043,0.7219,4256.2,4256.1,0.001]
[1755781127768,0.93933234,4256.2,4256.1,0.001]
[1755781127986,1.3819,4256.2,4256.1,0.001]
[1755781128128,2.179964,4256.2,4256.1,0.001]
[1755781128331,5.66695488,4256.2,4256.1,0.001]
[1755781131367,18.99146626,4256.2,4256.1,0.001]
[1755781132454,23.12746626,4256.2,4256.1,0.001]
[1755781133053,18.99146626,4256.2,4256.1,0.001]
[1755781133236,23.12746626,4256.2,4256.1,0.001]
[1755781134550,5.79723987,4256.2,4256.1,0.001]
[1755781134776,9.93323987,4256.2,4256.1,0.001]
[1755781135740,5.79723987,4256.2,4256.1,0.001]
[1755781135958,9.80195488,4256.2,4256.1,0.001]
[1755781136161,5.00695488,4256.2,4256.1,0.001]
[1755781136372,0.83486488,4256.2,4256.1,0.3142]
[1755781136641,0.1176,4256.2,4256.1,0.3142]
[1755781138175,0.1176,4256.2,4256.1,0.001]
[1755781138675,0.8443,4256.2,4256.1,0.001]
[1755781138848,0.33484159,4256.2,4256.1,0.001]
[1755781139054,0.412,4256.2,4256.1,0.001]
[1755781139272,1.21797812,4256.2,4256.1,0.001]
[1755781139876,0.78567812,4256.2,4256.1,0.001]
[1755781140275,1.21797812,4256.2,4256.1,0.001]
[1755781140456,0.78567812,4256.2,4256.1,0.001]
[1755781140656,0.49127812,4256.2,4256.1,0.001]
[1755781140872,0.27401559,4256.2,4256.1,0.001]
[1755781141445,0.27601559,4256.2,4256.1,0.001]
[1755781141948,0.27521559,4256.2,4256.1,0.001]
[1755781142608,0.1188,4256.2,4256.1,0.3142]
[1755781144460,0.1188,4256.2,4256.1,0.001]
[1755781144661,0.4132,4256.2,4256.1,0.001]
[1755781144969,0.1188,4256.2,4256.1,0.001]
[1755781145168,0.8455,4256.2,4256.1,0.001]
[1755781146981,0.1188,4256.2,4256.1,0.001]
[1755781147578,0.1188,4256.2,4256.1,0.3142]
[1755781149491,0.4252,4256.2,4256.1,0.001]
[1755781149706,1.10300683,4256.2,4256.1,0.001]
[1755781150001,0.33640683,4256.2,4256.1,0.001]
[1755781150404,0.4252,4256.2,4256.1,0.001]
[1755781150826,1.76303234,4256.2,4256.1,0.001]
[1755781151025,2.60097909,4256.2,4256.1,0.001]
[1755781151191,6.10118678,4256.2,4256.1,0.001]
[1755781151981,1.67458678,4256.2,4256.1,0.001]
[1755781152314,0.1188,4256.2,4256.1,0.3065]
[1755781152722,0.002,4256.2,4256.1,0.3065]
[1755781152887,0.1196,4256.2,4256.1,0.3065]
[1755781155120,0.1196,4256.2,4256.1,0.7761]
[1755781156604,0.1196,4256.2,4256.1,2.76471088]
[1755781156810,0.1196,4256.2,4256.1,7.66060461]
[1755781157105,0.002,4256.2,4256.1,7.66060461]
[1755781157308,0.002,4256.2,4256.1,7.77820461]
[1755781158892,0.002,4256.2,4256.1,8.43820461]
[1755781159215,0.002,4256.2,4256.1,12.56620461]
[1755781165830,0.0012,4256.2,4256.1,12.56620461]
[1755781168205,0.0012,4256.2,4256.1,7.30860461]
[1755781168412,0.0012,4256.2,4256.1,11.43160461]
[1755781171738,0.0012,4256.2,4256.1,12.56120461]
[1755781174004,0.0012,4256.2,4256.1,7.30860461]
[1755781174206,0.0012,4256.2,4256.1,9.53371088]
[1755781175429,0.0012,4256.2,4256.1,10.00331088]
[1755781175623,0.0012,4256.2,4256.1,9.53371088]
[1755781176763,0.0012,4256.2,4256.1,10.00331088]
[1755781177547,0.0012,4256.2,4256.1,10.66331088]
[1755781177845,0.0012,4256.2,4256.1,6.47904197]
[1755781178045,0.0012,4256.2,4256.1,11.04564197]
[1755781179211,0.0012,4256.2,4256.1,10.59904197]
[1755781180444,0.0012,4256.2,4256.1,16.6883622]
[1755781180809,0.2969,4256.2,4256.1,6.17354197]
[1755781181150,0.7416,4256.2,4256.1,9.22621088]
[1755781181348,0.2969,4256.2,4256.1,9.22621088]
[1755781181513,0.7416,4256.2,4256.1,9.22621088]
[1755781181713,0.7416,4256.2,4256.1,9.10861088]
[1755781182158,0.2969,4256.2,4256.1,10.64016399]
[1755781183533,0.0012,4256.2,4256.1,10.64016399]
[1755781184152,0.0012,4256.2,4256.1,11.51076399]
[1755781184763,0.0012,4256.2,4256.1,11.06416399]
[1755781185664,0.0012,4256.2,4256.1,6.94516399]
[1755781185839,0.0012,4256.2,4256.1,11.06216399]
[1755781189328,0.0004,4256.2,4256.1,17.15148422]
[1755781190850,0.0004,4256.2,4256.1,17.59808422]
[1755781191468,0.0004,4256.2,4256.1,17.15148422]
[1755781192666,0.0004,4256.2,4256.1,18.14048422]
[1755781192853,0.0004,4256.2,4256.1,18.25808422]
[1755781193056,0.0004,4256.2,4256.1,17.81148422]
[1755781193261,0.0004,4256.2,4256.1,13.69448422]
[1755781193570,0.0004,4256.2,4256.1,17.50108422]
[1755781194070,0.0004,4256.2,4256.1,17.80748422]
[1755781194447,0.0004,4256.2,4256.1,17.50108422]
[1755781194847,0.0004,4256.2,4256.1,17.80748422]
[1755781195339,0.2961,4256.2,4256.1,17.50108422]
[1755781195535,0.0004,4256.2,4256.1,17.80748422]
[1755781196866,0.0004,4256.2,4256.1,17.50108422]
[1755781197179,0.0004,4256.2,4256.1,17.80748422]
[1755781197376,0.0004,4256.2,4256.1,17.50108422]
[1755781198178,0.0004,4256.2,4256.1,17.50008422]
[1755781200385,0.7408,4256.2,4256.1,4.98961088]
[1755781200588,0.7408,4256.2,4256.1,9.10061088]
[1755781200895,0.0004,4256.2,4256.1,16.27393111]
[1755781201380,0.002,4257.1,4256.5,0.66]
[1755781201565,0.002,4257.1,4256.8,0.66]
[1755781201779,0.002,4257.1,4257.0,3.3064]
[1755781201996,0.2977,4257.1,4257.0,3.1176]
[1755781202151,0.002,4257.1,4257.0,8.194]
[1755781202350,0.002,4257.7,4257.1,0.66]
[1755781202699,0.002,4257.7,4257.6,9.20692023]
[1755781202848,0.2977,4257.7,4257.6,4.11]
[1755781203052,0.4153,4257.7,4257.6,3.0243]
[1755781203369,0.4153,4257.7,4256.9,1.807]
[1755781203565,0.21802587,4257.6,4257.0,4.11]
[1755781203773,0.2977,4257.7,4256.9,1.807]
[1755781203774,0.1176,4257.0,4256.9,1.807]
[1755781204081,0.4132,4257.0,4256.2,1.807]
[1755781204284,0.1176,4256.3,4256.2,4.109]
[1755781204449,0.4132,4256.3,4256.1,0.001]
[1755781204652,0.0058,4256.2,4256.1,0.001]
[1755781204856,0.2928,4256.2,4256.1,0.001]
[1755781205186,0.4046,4256.2,4256.1,0.001]
[1755781205389,0.1176,4256.2,4256.1,5.13428176]
[1755781205590,0.1176,4256.2,4256.1,8.88728176]
[1755781205880,0.2927,4256.2,4256.1,8.13428176]
[1755781206093,0.1176,4256.7,4256.2,3.0]
[1755781206298,0.2898,4256.3,4256.1,0.17497648]
[1755781206476,0.1176,4256.7,4256.3,4.108]
[1755781206677,0.2927,4256.4,4256.3,4.108]
[1755781207298,0.2956,4256.4,4256.1,0.17497648]
[1755781207501,0.0029,4256.3,4256.2,4.108]
[1755781207701,0.2927,4256.3,4256.2,4.108]
[1755781207994,0.4103,4256.3,4256.2,4.108]
[1755781208176,0.4074,4256.3,4256.2,4.108]
[1755781208372,0.4132,4256.3,4256.2,4.108]
[1755781209077,0.1176,4256.6,4256.2,4.108]
[1755781209290,0.2927,4256.3,4256.2,4.108]
[1755781209596,0.2956,4256.3,4256.2,4.108]
[1755781209796,0.4132,4256.3,4256.2,4.108]
[1755781210200,0.4132,4256.3,4256.1,0.001]
[1755781210511,0.0029,4256.2,4256.1,4.108]
[1755781210718,0.0029,4256.2,4256.1,0.001]
[1755781210719,0.2927,4256.2,4256.1,0.001]
[1755781211206,0.50998792,4256.2,4256.1,0.001]
[1755781211571,4.16998792,4256.2,4256.1,0.001]
[1755781211771,6.02178547,4256.2,4256.1,0.001]
[1755781212519,36.02178547,4256.2,4256.1,0.001]
[1755781212671,3.66,4255.9,4255.8,0.02]
[1755781212870,4.92099465,4255.9,4255.8,0.02]
[1755781213102,4.78984712,4255.9,4255.8,0.02]
[1755781213417,5.34330294,4255.9,4255.8,0.02]
[1755781213572,0.63048792,4255.9,4255.8,0.02]
[1755781213926,0.4103,4255.9,4255.8,0.02]
[1755781214072,0.1176,4255.9,4255.8,0.02]
[1755781214271,0.1176,4256.3,4255.8,0.7972]
[1755781214501,0.1176,4256.3,4255.9,6.56202023]
[1755781214679,0.1176,4256.3,4255.9,1.29181202]
[1755781214885,0.1176,4256.3,4256.2,0.3045]
[1755781215201,0.1176,4256.6,4256.2,6.39382023]
[1755781215398,0.1176,4256.6,4256.3,4.106]
[1755781215711,0.1176,4256.6,4256.5,0.3045]
[1755781215915,0.002,4257.2,4256.6,3.0]
[1755781216215,0.002,4257.2,4256.6,9.89001315]
[1755781216388,0.002,4257.2,4256.6,9.86652023]
[1755781217783,0.002,4257.2,4256.6,10.04458701]
[1755781218507,0.002,4257.2,4256.6,3.48256678]
[1755781218697,0.002,4257.2,4256.6,8.7109436]
[1755781218888,0.1176,4257.1,4256.6,8.7109436]
[1755781220985,0.1176,4257.1,4256.6,8.7099436]
[1755781221804,0.1176,4257.1,4256.6,7.9327436]
[1755781222504,0.1176,4257.1,4256.6,8.2372436]
[1755781222912,0.002,4256.7,4256.6,7.9327436]
[1755781223223,0.002,4256.7,4256.6,21.87002797]
[1755781223580,0.1176,4257.1,4256.7,0.66]
[1755781223880,0.002,4257.2,4257.0,0.3045]
[1755781224084,0.002,4257.2,4257.1,7.24409016]
[1755781224300,0.002,4257.2,4257.1,7.5251]
[1755781224503,0.002,4257.2,4257.1,7.9978]
[1755781224818,0.002,4257.2,4257.1,7.5251]
[1755781224986,0.002,4257.2,4257.1,8.64847682]
[1755781225181,0.002,4257.2,4257.1,3.76827682]
[1755781225378,0.002,4257.2,4257.1,3.1176]
[1755781225629,0.002,4257.2,4257.1,7.9978]
[1755781225915,0.002,4257.2,4257.1,7.2206]
[1755781226121,0.002,4257.2,4257.1,7.5251]
[1755781226279,0.002,4257.2,4257.1,7.9978]
[1755781226479,0.002,4257.2,4257.1,3.91738]
[1755781226695,0.002,4257.2,4257.1,7.103]
[1755781227715,0.002,4257.2,4257.1,3.0]
[1755781227716,0.101,4257.2,4257.1,3.0]
[1755781227923,0.2186,4257.2,4256.6,0.17806678]
[1755781228107,0.4432,4257.2,4256.7,4.102]
[1755781228317,0.4432,4257.2,4256.5,4.102]
[1755781228318,0.1176,4256.8,4256.5,4.102]
[1755781228623,0.1176,4256.6,4256.5,4.102]
[1755781228808,0.219,4256.6,4256.5,4.102]
[1755781229785,0.219,4256.6,4256.5,4.101]
[1755781230123,0.5588,4256.6,4256.4,4.101]
[1755781230335,0.1014,4256.6,4255.9,1.807]
[1755781230500,0.1014,4256.6,4255.6,0.001]
[1755781230822,0.3398,4256.5,4255.6,0.001]
[1755781231023,0.1038,4255.9,4255.6,0.001]
[1755781231210,0.3374,4256.7,4255.6,0.02449844]
[1755781231411,0.1062,4255.9,4255.7,4.101]
[1755781233021,0.1062,4255.9,4255.6,0.001]
[1755781233220,0.1062,4255.9,4255.6,4.102]
[1755781233524,0.1062,4255.9,4255.6,0.001]
[1755781236937,0.1054,4255.9,4255.6,0.001]
[1755781239020,0.7654,4255.9,4255.6,0.001]
[1755781239326,0.98184525,4255.9,4255.6,0.001]
[1755781239519,0.98164668,4255.9,4255.6,0.001]
[1755781240632,1.09924668,4255.9,4255.6,0.001]
[1755781241410,1.68997135,4255.9,4255.6,0.001]
[1755781243142,0.59072467,4255.9,4255.6,0.001]
[1755781243340,0.099,4255.9,4255.6,0.001]
[1755781243749,0.21625545,4256.2,4255.6,0.001]
[1755781244446,0.099,4255.9,4255.6,0.001]
[1755781244927,2.9084,4255.9,4255.6,0.001]
[1755781245112,50.63489413,4255.9,4255.8,0.0176]
[1755781245455,52.85490485,4255.9,4255.8,0.0176]
[1755781245747,6.00978969,4255.7,4255.6,0.001]
[1755781245947,36.95162518,4255.7,4255.6,0.001]
[1755781246257,34.94082776,4255.7,4255.6,0.001]
[1755781246421,39.65275708,4255.7,4255.6,0.001]
[1755781246618,37.30296739,4255.7,4255.6,0.001]
[1755781246833,41.40196739,4255.7,4255.6,0.001]
[1755781248719,41.40178709,4255.7,4255.6,0.001]
[1755781249850,37.30278709,4255.7,4255.6,0.001]
[1755781250158,41.40078709,4255.7,4255.6,0.001]
[1755781251665,41.40075411,4255.7,4255.6,0.001]
[1755781252163,36.96376436,4255.7,4255.6,0.001]
[1755781252393,3.07630289,4255.7,4255.6,0.001]
[1755781252551,4.3139473,4255.7,4255.6,0.7528]
[1755781252747,4.3139473,4255.7,4255.6,0.001]
[1755781252951,5.68744964,4255.7,4255.6,0.001]
[1755781253152,9.02544964,4255.7,4255.6,0.001]
[1755781253577,4.92744964,4255.7,4255.6,0.001]
[1755781253783,9.78065479,4255.7,4255.6,0.001]
[1755781254499,9.44265479,4255.7,4255.6,0.001]
[1755781254703,5.12870749,4255.7,4255.6,0.001]
[1755781254882,5.3445038,4255.7,4255.6,0.001]
[1755781255061,9.4415038,4255.7,4255.6,0.001]
[1755781255262,9.77964805,4255.7,4255.6,0.001]
[1755781255505,39.9092093,4255.7,4255.6,0.001]
[1755781256696,3.66,4255.6,4255.4,0.001]
[1755781256991,7.16784378,4255.5,4255.4,0.001]
[1755781257201,37.30364378,4255.5,4255.4,0.001]
[1755781259088,37.16784378,4255.5,4255.4,0.001]
[1755781259289,3.66,4255.4,4255.3,0.001]
[1755781259596,39.01760415,4255.4,4255.3,0.001]
[1755781259766,41.37974378,4255.4,4255.3,0.001]
[1755781260090,41.51714378,4255.4,4255.3,0.001]
[1755781260291,6.01001057,4255.3,4255.2,0.001]
[1755781260492,34.80240415,4255.3,4255.2,0.001]
[1755781260680,34.94070415,4255.3,4254.7,0.001]
[1755781260990,34.94070415,4255.3,4254.5,0.001]
[1755781260991,0.1176,4255.1,4254.5,0.001]
[1755781261298,0.1176,4254.7,4254.5,0.001]
[1755781261495,7.42954056,4254.7,4254.6,0.2899]
[1755781261790,7.9264429,4254.7,4254.6,0.2899]
[1755781261993,7.9264429,4254.7,4254.6,0.001]
[1755781262186,8.89988719,4254.7,4254.6,0.001]
[1755781262392,8.89988719,4254.7,4254.6,0.7528]
[1755781262802,9.55988719,4254.7,4254.6,0.7528]
[1755781262987,9.34394663,4254.7,4254.6,0.7528]
[1755781263188,5.46470725,4254.7,4254.6,0.7528]
[1755781263384,9.56070725,4254.7,4254.6,0.7528]
[1755781263591,9.56070725,4254.7,4254.6,0.2899]
[1755781263592,9.56078003,4254.7,4254.6,0.2899]
[1755781263805,9.69086277,4254.7,4254.6,0.2899]
[1755781264116,9.69087243,4254.7,4254.6,0.7528]
[1755781264289,9.69427243,4254.7,4254.6,0.001]
[1755781264705,9.69087243,4254.7,4254.6,0.001]
[1755781265185,5.59487243,4254.7,4254.6,0.001]
[1755781265702,9.68987243,4254.7,4254.6,0.001]
[1755781266012,9.68987243,4254.7,4254.6,0.2899]
[1755781266685,9.68987243,4254.7,4254.6,0.001]
[1755781267984,5.59487243,4254.7,4254.6,0.001]
[1755781268184,9.68987243,4254.7,4254.6,0.001]
[1755781268602,9.69087243,4254.7,4254.6,0.001]
[1755781269115,5.59487243,4254.7,4254.6,0.001]
[1755781269426,3.66,4254.6,4254.5,0.001]
[1755781269641,5.47301538,4254.6,4254.5,0.001]
[1755781270216,7.82541259,4254.6,4254.5,0.001]
[1755781270408,7.82541259,4254.6,4253.9,0.001]
[1755781270409,44.30745729,4254.6,4253.9,0.001]
[1755781270588,3.66,4254.0,4253.9,0.001]
[1755781270787,11.06786707,4254.0,4253.9,0.001]
[1755781270986,6.97386707,4254.0,4253.9,0.001]
[1755781271235,47.17578735,4254.0,4253.9,0.001]
[1755781272292,42.39063057,4254.0,4253.9,0.001]
[1755781272521,43.07861311,4254.0,4253.9,0.001]
[1755781272685,43.76255253,4254.0,4253.9,0.001]
[1755781272886,43.76250395,4254.0,4253.9,0.001]
[1755781273207,43.76249647,4254.0,4253.9,0.001]
[1755781274185,2.35078398,4253.9,4252.9,0.001]
[1755781274388,0.66,4253.1,4252.9,0.001]
[1755781274594,40.50632882,4253.0,4252.9,0.001]
[1755781274809,43.31321026,4253.0,4252.9,0.001]
[1755781275011,36.41232882,4253.0,4252.9,0.001]
[1755781275216,10.52492882,4253.0,4252.9,0.001]
[1755781275533,7.64976963,4253.0,4252.9,0.7505]
[1755781275837,3.66,4252.9,4252.8,0.02]
[1755781276131,4.50402175,4252.9,4252.8,0.02]
[1755781276315,4.50402175,4252.9,4252.8,0.3162]
[1755781276316,0.83145197,4252.9,4252.8,0.3162]
[1755781276638,0.83145197,4252.9,4252.8,0.02]
[1755781276639,5.84849717,4252.9,4252.8,0.02]
[1755781276817,3.66,4252.8,4252.6,0.001]
[1755781276996,38.74696484,4252.7,4252.6,0.001]
[1755781277341,34.65396484,4252.7,4252.6,0.001]
[1755781277570,38.59696484,4252.7,4252.6,0.001]
[1755781277770,36.86610447,4252.7,4252.6,0.001]
[1755781277940,6.86610447,4252.7,4252.6,0.001]
[1755781278129,38.74406484,4252.7,4252.6,0.001]
[1755781278334,34.65106484,4252.7,4252.6,0.001]
[1755781278534,4.62156484,4252.7,4252.6,0.001]
[1755781278735,8.71456484,4252.7,4252.6,0.2972]
[1755781279243,8.71456484,4252.7,4251.8,0.02]
[1755781279244,3.0,4252.6,4251.8,0.02]
[1755781279441,0.7776,4251.9,4251.8,0.02]
[1755781279642,6.43056484,4251.9,4251.8,0.02]
[1755781279960,36.43056484,4251.9,4251.8,0.02]
[1755781280163,10.52356484,4251.9,4251.8,0.02]
[1755781280464,10.52456484,4251.9,4251.8,0.02]
[1755781280662,11.57702132,4251.9,4251.8,0.02]
[1755781281136,7.4826158,4251.9,4251.8,0.3162]
[1755781281347,11.59400845,4251.9,4251.8,0.02]
[1755781281529,11.72293899,4251.9,4251.8,0.02]
[1755781281730,7.48183899,4251.9,4251.8,0.02]
[1755781282024,7.364228,4251.9,4251.8,0.7695]
[1755781282230,9.73267058,4251.9,4251.8,0.7695]
[1755781282473,10.39267058,4251.9,4251.8,0.7695]
[1755781283160,6.29967058,4251.9,4251.8,0.7695]
[1755781283366,6.73367058,4251.9,4251.8,0.7695]
[1755781283744,9.73367058,4251.9,4251.8,0.7695]
[1755781284047,10.70703764,4251.9,4251.8,0.3162]
[1755781284374,11.36703764,4251.9,4251.8,0.02]
[1755781284677,11.3662339,4251.9,4251.8,0.02]
[1755781284854,11.64302205,4251.9,4251.8,0.02]
[1755781285168,11.49492205,4251.9,4251.8,0.02]
[1755781285670,11.64492205,4251.9,4251.8,0.02]
[1755781286543,7.40192205,4251.9,4251.8,0.02]
[1755781286953,10.83492205,4251.9,4251.8,0.02]
[1755781287153,11.49492205,4251.9,4251.8,0.02]
[1755781287360,11.64202205,4251.9,4251.8,0.02]
[1755781287648,11.6419902,4251.9,4251.8,0.02]
[1755781287835,11.4948902,4251.9,4251.8,0.02]
[1755781288243,7.4018902,4251.9,4251.8,0.02]
[1755781288470,11.6419902,4251.9,4251.8,0.02]
[1755781288871,41.6419902,4251.9,4251.8,0.02]
[1755781290756,41.2961694,4251.9,4251.8,0.02]
[1755781290938,41.64187954,4251.9,4251.8,0.02]
[1755781291140,41.2961694,4251.9,4251.8,0.02]
[1755781291678,41.641908,4251.9,4251.8,0.02]
[1755781291976,41.494808,4251.9,4251.8,0.02]
[1755781292179,7.70515603,4251.9,4251.8,0.7695]
[1755781292379,7.70515603,4251.9,4251.8,0.02]
[1755781292577,11.36515603,4251.9,4251.8,0.02]
[1755781293078,7.27215603,4251.9,4251.8,0.7695]
[1755781293282,11.36515603,4251.9,4251.8,0.7695]
[1755781293448,11.1490694,4251.9,4251.8,0.7695]
[1755781293648,11.36533258,4251.9,4251.8,0.7695]
[1755781294159,11.36533258,4251.9,4251.8,0.7705]
[1755781294391,7.27233258,4251.9,4251.8,0.7705]
[1755781294557,11.36533258,4251.9,4251.8,0.7705]
[1755781295096,7.27233258,4251.9,4251.8,0.7705]
[1755781295388,11.36433258,4251.9,4251.8,0.7705]
[1755781296257,11.49432093,4251.9,4251.8,0.7705]
[1755781296470,11.64142093,4251.9,4251.8,0.021]
[1755781296668,7.54942093,4251.9,4251.8,0.021]
[1755781296984,6.61336552,4251.9,4251.8,0.7705]
[1755781297445,2.52136552,4251.9,4251.8,0.7705]
[1755781297649,9.11646318,4251.9,4251.8,0.7705]
[1755781297972,9.61336552,4251.9,4251.8,0.7705]
[1755781298301,3.71612823,4251.9,4251.8,0.7705]
[1755781298580,7.80812823,4251.9,4251.8,0.7705]
[1755781298783,3.71612823,4251.9,4251.8,0.7705]
[1755781299088,0.71612823,4251.9,4251.8,0.7705]
[1755781299396,0.21626318,4251.9,4251.8,0.7705]
[1755781300180,0.21734085,4251.9,4251.8,0.7705]
[1755781300385,0.71807226,4251.9,4251.8,0.7705]
[1755781300569,0.71807699,4251.9,4251.8,0.7705]
[1755781300770,0.21734558,4251.9,4251.8,0.7705]
[1755781301294,0.71830154,4251.9,4251.8,0.7705]
[1755781302076,0.21734558,4251.9,4251.8,0.7705]
[1755781302277,1.81,4252.5,4251.8,0.7705]
[1755781302278,0.21734558,4252.3,4251.8,0.7705]
[1755781302487,0.21734558,4252.4,4251.9,0.45811889]
[1755781302681,0.71830154,4252.5,4251.9,0.4346]
[1755781302892,0.21734558,4252.4,4252.3,0.31]
[1755781303259,0.002,4252.8,4252.3,0.31]
[1755781303491,3.002,4252.8,4252.3,0.31]
[1755781303805,0.84890484,4252.7,4252.3,0.31]
[1755781303958,3.0,4252.5,4252.3,0.7446]
[1755781304154,0.71843919,4252.4,4252.3,0.31]
[1755781304589,3.66,4252.3,4251.8,0.021]
[1755781304795,3.66,4252.3,4251.3,0.001]
[1755781304796,30.66,4251.8,4251.3,0.001]
[1755781304959,0.9499,4251.4,4251.3,0.001]
[1755781305301,10.19781355,4251.4,4251.3,0.001]
[1755781305458,10.69876951,4251.4,4251.3,0.001]
[1755781305654,6.60876951,4251.4,4251.3,0.001]
[1755781305859,11.65944646,4251.4,4251.3,0.001]
[1755781306083,6.97974646,4251.4,4251.3,0.001]
[1755781306283,6.97974646,4251.4,4251.3,0.7456]
[1755781306284,2.65886951,4251.4,4251.3,0.7456]
[1755781306496,0.21748323,4251.4,4251.3,0.7456]
[1755781306695,0.71841058,4251.5,4251.3,0.7456]
[1755781306863,0.33508323,4251.4,4251.3,0.7456]
[1755781307178,0.33508323,4251.4,4251.3,0.311]
[1755781307395,0.83599609,4251.4,4251.3,0.311]
[1755781307872,4.42508323,4251.4,4251.3,0.7456]
[1755781308068,4.92599609,4251.4,4251.3,0.7456]
[1755781308282,0.83519609,4251.4,4251.3,0.7456]
[1755781308460,4.42428323,4251.4,4251.3,0.7456]
[1755781308656,9.02762441,4251.4,4251.3,0.001]
[1755781308864,41.55772246,4251.4,4251.3,0.001]
[1755781309171,41.42732441,4251.4,4251.3,0.001]
[1755781309366,41.04116758,4251.4,4251.3,0.001]
[1755781309758,41.04112524,4251.4,4251.3,0.001]
[1755781310105,41.34092524,4251.4,4251.3,0.001]
[1755781310412,10.75122524,4251.4,4251.3,0.311]
[1755781310773,6.00122524,4251.4,4251.3,0.311]
[1755781310978,9.64726778,4251.4,4251.3,0.311]
[1755781311173,5.42798372,4251.4,4251.3,0.7456]
[1755781311390,9.51698372,4251.4,4251.3,0.7456]
[1755781311803,9.51698372,4251.4,4251.3,0.311]
[1755781312565,9.51698372,4251.4,4251.3,0.001]
[1755781312760,11.12868209,4251.4,4251.3,0.001]
[1755781313119,11.37565582,4251.4,4251.3,0.001]
[1755781315409,11.25895582,4251.4,4251.3,0.001]
[1755781316185,0.61798372,4251.4,4251.3,0.7456]
[1755781316398,0.1176,4251.4,4251.3,0.7456]
[1755781318310,1.81,4252.1,4251.3,0.7456]
[1755781318476,4.089,4252.0,4251.4,0.4346]
[1755781318660,0.1176,4251.5,4251.4,0.4346]
[1755781319124,0.1176,4251.5,4251.4,0.7446]
[1755781320028,0.1176,4251.5,4251.4,0.31]
[1755781320221,0.33490691,4251.5,4251.3,0.001]
[1755781321063,0.21730691,4251.5,4251.4,0.7446]
[1755781321342,0.002,4252.3,4251.4,0.7446]
[1755781321490,0.002,4252.3,4251.7,13.20622193]
[1755781321692,0.002,4252.3,4252.2,0.31]
[1755781322185,0.002,4252.3,4252.2,0.7446]
[1755781324427,0.022,4252.8,4252.7,0.66]
[1755781324592,0.002,4253.7,4252.8,3.0]
[1755781324797,0.002,4253.7,4253.2,13.63382193]
[1755781325012,0.002,4253.7,4253.2,14.99720412]
[1755781325209,0.002,4253.7,4253.2,15.43180412]
[1755781327514,0.002,4253.7,4253.2,2.10798219]
[1755781328206,0.002,4253.7,4253.2,2.13149389]
[1755781328429,0.002,4253.7,4253.2,15.33771582]
[1755781328628,0.002,4253.7,4253.2,15.31420412]
[1755781328829,0.002,4253.7,4253.2,18.31420412]
[1755781329015,0.002,4253.7,4253.5,0.1176]
[1755781329220,0.002,4253.7,4253.6,1.809]
[1755781329420,0.002,4253.7,4253.6,5.5419]
[1755781329623,0.002,4253.7,4253.6,9.6279]
[1755781331034,0.002,4253.7,4253.6,5.5419]
[1755781331335,0.002,4253.7,4253.6,10.99028219]
[1755781331901,0.0012,4253.7,4253.6,7.99028219]
[1755781332097,0.0012,4253.7,4253.6,10.99028219]
[1755781333403,0.0012,4253.7,4253.6,11.65028219]
[1755781333602,0.0012,4253.7,4253.6,11.10788219]
[1755781334213,0.002,4255.2,4253.7,3.66]
[1755781334421,0.002,4255.2,4254.7,0.301]
[1755781334631,0.002,4255.2,4254.7,4.385]
[1755781334842,0.002,4255.2,4254.7,4.95800341]
[1755781335051,0.02,4255.8,4254.8,0.66]
[1755781335216,0.02,4255.8,4255.5,13.20622193]
[1755781335421,0.02,4255.8,4255.5,19.78721856]
[1755781335641,0.02,4255.8,4255.5,23.21911856]
[1755781336257,0.02,4256.8,4255.6,6.00980364]
[1755781336549,0.02,4256.8,4256.6,0.301]
[1755781336733,0.02,4256.8,4256.6,4.40849292]
[1755781336943,0.02,4256.8,4256.6,5.77187511]